[Event "XII Paracin Festival 2019"]
[Site "Paracin"]
[Date "2019.07.08"]
[Round "4.22"]
[White "Radovanovic, Nikola"]
[Black "Tadic, Stefan"]
[Result "1/2-1/2"]
[ECO "A43"]
[WhiteElo "2431"]
[BlackElo "2262"]
[Annotator "NA"]
[PlyCount "99"]
[EventDate "2019.07.05"]
[EventType "swiss"]
[EventCountry "SRB"]
[SourceTitle "playchess.com"]
[Source "ChessBase"]
[SourceQuality "1"]
[TimeControl "5400+30"]

1. d4 {[%emt 0:00:00]} Nf6 {[%emt 0:00:00]} 2. Nf3 {[%emt 0:00:00]} c5 {[%emt 0:01:42]} 3. d5 {[%emt 0:00:22]} b5 {[%emt 0:00:10]} 4. c3 {[%emt 0:00:16]} Bb7 {[%emt 0:03:49]} 5. e4 {[%emt 0:00:25]} Nxe4 {[%emt 0:09:46]} 6. Bxb5 {[%emt 0:00:15]} Nf6 {[%emt 0:09:06]} 7. c4 {[%emt 0:01:42]} a6 {[%emt 0:14:34]} 8. Ba4 {[%emt 0:00:19]} e6 {[%emt 0:00:07]} 9. Nc3 {[%emt 0:09:00]} Qb6 {[%emt 0:03:29]} 10. O-O {[%emt 0:04:45]} Be7 {[%emt 0:03:32]} 11. Bg5 {[%emt 0:10:36]} O-O {[%emt 0:09:42]} 12. Re1 {[%emt 0:14:35]} h6 {[%emt 0:02:30]} 13. Bh4 {[%emt 0:02:07]} Bd8 {[%emt 0:07:20]} 14. Bc2 {[%emt 0:15:07]} exd5 {[%emt 0:03:00]} 15. Bxf6 {[%emt 0:05:09]} Bxf6 {[%emt 0:04:57]} 16. Qd3 {[%emt 0:01:03]} g6 {[%emt 0:00:24]} 17. Nxd5 {[%emt 0:00:17]} Qd6 {[%emt 0:12:07]} 18. Rad1 {[%emt 0:08:22]} Bxd5 {[%emt 0:01:36]} 19. cxd5 {[%emt 0:00:28]} a5 {[%emt 0:03:45]} 20. Nd2 {[%emt 0:01:54]} Bd4 {[%emt 0:01:02]} 21. Ne4 {[%emt 0:02:21]} Qb6 {[%emt 0:01:03]} 22. h4 {[%emt 0:14:56]} Na6 {[%emt 0:00:34]} 23. Bb1 {[%emt 0:00:37]} Nb4 {[%emt 0:04:39]} 24. Qg3 {[%emt 0:01:34]} Rae8 {[%emt 0:01:36]} 25. Nd6 {[%emt 0:03:55]} Rxe1+ {[%emt 0:00:28]} 26. Rxe1 {[%emt 0:00:04]} c4 {[%emt 0:01:20]} 27. Nxc4 {[%emt 0:01:45]} Qc5 {[%emt 0:00:09]} 28. b3 {[%emt 0:01:21]} Qxd5 {[%emt 0:00:46]} 29. Be4 {[%emt 0:00:37]} Qe6 {[%emt 0:00:41]} 30. Re2 {[%emt 0:00:29]} d5 {[%emt 0:00:24]} 31. Bf3 {[%emt 0:00:19]} Qf6 {[%emt 0:00:36]} 32. Nd6 {[%emt 0:00:43]} Nd3 {[%emt 0:00:28]} 33. Nb5 {[%emt 0:00:32]} Be5 {[%emt 0:00:25]} 34. Qg4 {[%emt 0:00:17]} Nf4 {[%emt 0:00:32]} 35. Re1 {[%emt 0:00:36]} h5 {[%emt 0:00:38]} 36. Qg5 {[%emt 0:00:21]} Qxg5 {[%emt 0:00:25]} 37. hxg5 {[%emt 0:00:05]} Bg7 {[%emt 0:00:30]} 38. g3 {[%emt 0:00:21]} Nh3+ {[%emt 0:00:14]} 39. Kg2 {[%emt 0:00:50]} Nxg5 {[%emt 0:00:03]} 40. Bxd5 {[%emt 0:00:07]} Rd8 {[%emt 0:00:55]} 41. Bc4 {[%emt 0:01:02]} Rd2 {[%emt 0:00:22]} 42. a4 {[%emt 0:00:50]} Bf8 {[%emt 0:00:52]} 43. Re2 {[%emt 0:00:32]} Rxe2 {[%emt 0:00:35]} 44. Bxe2 {[%emt 0:00:04]} Ne4 {[%emt 0:00:30]} 45. Bf3 {[%emt 0:00:40]} Nc5 {[%emt 0:00:32]} 46. Bd5 {[%emt 0:00:13]} Nd3 {[%emt 0:00:18]} 47. Bc4 {[%emt 0:00:57]} Ne5 {[%emt 0:00:22]} 48. Bd5 {[%emt 0:00:09]} Nd3 {[%emt 0:00:07]} 49. Bc4 {[%emt 0:00:38]} Ne5 {[%emt 0:00:06]} 50. Bd5 {[%emt 0:00:39]} 1/2-1/2

[Event "XII Paracin Festival 2019"]
[Site "Paracin"]
[Date "2019.07.08"]
[Round "4.23"]
[White "Ratkovic, Miloje"]
[Black "Strugnell, Carl"]
[Result "1-0"]
[ECO "A05"]
[WhiteElo "2416"]
[BlackElo "2248"]
[Annotator "NA"]
[PlyCount "59"]
[EventDate "2019.07.05"]
[EventType "swiss"]
[EventCountry "SRB"]
[SourceTitle "playchess.com"]
[Source "ChessBase"]
[SourceQuality "1"]
[TimeControl "5400+30"]

1. Nf3 {[%emt 0:00:33]} Nf6 {[%emt 0:00:16]} 2. e3 {[%emt 0:00:21]} b6 {[%emt 0:03:19]} 3. d4 {[%emt 0:04:15]} Bb7 {[%emt 0:00:24]} 4. Bd3 {[%emt 0:00:14]} e6 {[%emt 0:03:36]} 5. O-O {[%emt 0:00:35]} c5 {[%emt 0:04:43]} 6. c4 {[%emt 0:00:27]} cxd4 {[%emt 0:11:53]} 7. exd4 d5 {[%emt 0:02:26]} 8. cxd5 {[%emt 0:03:13]} Nxd5 {[%emt 0:02:05]} 9. Ne5 {[%emt 0:01:32]} a6 {[%emt 0:11:08]} 10. Nc3 {[%emt 0:06:47]} Nd7 {[%emt 0:08:50]} 11. f4 {[%emt 0:08:55]} g6 {[%emt 0:02:42]} 12. Qe2 {[%emt 0:03:50]} Be7 {[%emt 0:03:38]} 13. Nxd5 {[%emt 0:03:26]} Bxd5 {[%emt 0:00:22]} 14. Bxa6 {[%emt 0:09:15]} O-O {[%emt 0:01:47]} 15. Bb5 Nf6 16. f5 {[%emt 0:03:23]} exf5 {[%emt 0:03:31]} 17. Bh6 {[%emt 0:00:17]} Bd6 {[%emt 0:06:14]} 18. Bxf8 {[%emt 0:04:42]} Qxf8 {[%emt 0:00:32]} 19. Bc4 {[%emt 0:04:00]} Ra5 {[%emt 0:01:48]} 20. Rac1 {[%emt 0:02:43]} Qh6 {[%emt 0:01:24]} 21. b4 {[%emt 0:02:47]} Bxc4 {[%emt 0:03:52]} 22. Rxc4 {[%emt 0:10:16]} Rd5 {[%emt 0:00:26]} 23. h3 {[%emt 0:02:27]} b5 24. Rc8+ {[%emt 0:12:23]} Kg7 {[%emt 0:01:51]} 25. Ra8 {[%emt 0:02:42]} Rxd4 {[%emt 0:09:39]} 26. Nxf7 {[%emt 0:03:40]} Kxf7 {[%emt 0:02:14]} 27. Ra7+ {[%emt 0:00:40]} Kf8 {[%emt 0:00:17]} 28. Qe6 {[%emt 0:00:25]} Bh2+ {[%emt 0:06:44]} 29. Kxh2 {[%emt 0:01:05]} Ng4+ {[%emt 0:00:05]} 30. Kh1 {[%emt 0:00:41]} 1-0

[Event "XII Paracin Festival 2019"]
[Site "Paracin"]
[Date "2019.07.08"]
[Round "4.24"]
[White "Gadimbayli, Abdulla"]
[Black "Ozsoy, Alimert"]
[Result "1-0"]
[ECO "B19"]
[WhiteElo "2414"]
[BlackElo "2087"]
[Annotator "NA"]
[PlyCount "51"]
[EventDate "2019.07.05"]
[EventType "swiss"]
[EventCountry "SRB"]
[SourceTitle "playchess.com"]
[Source "ChessBase"]
[SourceQuality "1"]
[TimeControl "5400+30"]

1. e4 {[%emt 0:06:51]} c6 {[%emt 0:00:00]} 2. d4 {[%emt 0:00:05]} d5 {[%emt 0:00:00]} 3. Nc3 {[%emt 0:00:04]} dxe4 {[%emt 0:00:00]} 4. Nxe4 {[%emt 0:00:05]} Bf5 {[%emt 0:00:01]} 5. Ng3 {[%emt 0:00:04]} Bg6 {[%emt 0:00:04]} 6. h4 {[%emt 0:00:18]} h6 {[%emt 0:00:05]} 7. Nf3 {[%emt 0:00:04]} Nd7 {[%emt 0:00:13]} 8. h5 {[%emt 0:00:20]} Bh7 {[%emt 0:00:17]} 9. Bd3 Bxd3 10. Qxd3 {[%emt 0:00:47]} e6 {[%emt 0:00:46]} 11. Bd2 {[%emt 0:00:09]} Ngf6 {[%emt 0:00:26]} 12. O-O-O {[%emt 0:00:05]} Be7 {[%emt 0:00:17]} 13. Ne4 {[%emt 0:00:32]} O-O {[%emt 0:02:51]} 14. Nxf6+ {[%emt 0:06:34]} Nxf6 {[%emt 0:01:52]} 15. Kb1 {[%emt 0:00:58]} Qc7 {[%emt 0:02:19]} 16. Qe2 {[%emt 0:12:01]} Rad8 {[%emt 0:23:58]} 17. g4 {[%emt 0:03:33]} c5 {[%emt 0:12:17]} 18. g5 {[%emt 0:37:08]} hxg5 {[%emt 0:00:32]} 19. Bxg5 {[%emt 0:01:24]} cxd4 {[%emt 0:02:29]} 20. Rdg1 {[%emt 0:03:45]} Qb6 {[%emt 0:23:08]} 21. Bh6 {[%emt 0:05:15]} Ba3 {[%emt 0:02:12]} 22. b3 {[%emt 0:02:59]} Nd5 {[%emt 0:04:12]} 23. Rxg7+ {[%emt 0:03:40]} Kh8 {[%emt 0:00:04]} 24. Qe5 {[%emt 0:00:04]} f6 {[%emt 0:00:51]} 25. Qg3 {[%emt 0:00:11]} Rg8 {[%emt 0:00:46]} 26. Qg6 {[%emt 0:00:04]} 1-0

[Event "XII Paracin Festival 2019"]
[Site "Paracin"]
[Date "2019.07.08"]
[Round "4.25"]
[White "Saksham Rautela"]
[Black "Djordjevic, Vuk"]
[Result "0-1"]
[ECO "C03"]
[WhiteElo "2232"]
[BlackElo "2412"]
[Annotator "NA"]
[PlyCount "140"]
[EventDate "2019.07.05"]
[EventType "swiss"]
[EventCountry "SRB"]
[SourceTitle "playchess.com"]
[Source "ChessBase"]
[SourceQuality "1"]
[TimeControl "5400+30"]

1. e4 {[%emt 0:00:00]} e6 {[%emt 0:00:00]} 2. d4 {[%emt 0:00:00]} d5 {[%emt 0:00:02]} 3. Nd2 {[%emt 0:00:07]} Be7 {[%emt 0:02:33]} 4. Ngf3 {[%emt 0:00:09]} Nf6 {[%emt 0:00:50]} 5. e5 {[%emt 0:00:12]} Nfd7 {[%emt 0:00:03]} 6. Bd3 {[%emt 0:00:17]} c5 {[%emt 0:00:12]} 7. c3 {[%emt 0:00:07]} b6 {[%emt 0:00:03]} 8. Ne4 {[%emt 0:00:13]} Ba6 {[%emt 0:06:28]} 9. Bxa6 {[%emt 0:00:26]} Nxa6 {[%emt 0:01:53]} 10. Nd6+ {[%emt 0:00:13]} Bxd6 {[%emt 0:02:12]} 11. exd6 {[%emt 0:00:02]} Nab8 {[%emt 0:07:51]} 12. O-O {[%emt 0:06:31]} O-O {[%emt 0:03:41]} 13. Bf4 {[%emt 0:05:38]} Nf6 {[%emt 0:11:20]} 14. Ne5 {[%emt 0:13:44]} Ne4 {[%emt 0:27:11]} 15. c4 {[%emt 0:07:07]} f6 {[%emt 0:02:14]} 16. Nf3 {[%emt 0:17:38]} g5 {[%emt 0:02:56]} 17. Be3 {[%emt 0:16:25]} Qxd6 {[%emt 0:01:08]} 18. cxd5 {[%emt 0:01:19]} exd5 {[%emt 0:01:13]} 19. dxc5 {[%emt 0:00:11]} bxc5 {[%emt 0:01:04]} 20. Qc2 {[%emt 0:04:31]} Nd7 {[%emt 0:01:29]} 21. Rfd1 {[%emt 0:00:28]} Qe6 {[%emt 0:00:54]} 22. b4 {[%emt 0:05:29]} cxb4 {[%emt 0:02:11]} 23. Nd4 {[%emt 0:00:37]} Qf7 {[%emt 0:03:14]} 24. Nf5 {[%emt 0:04:08]} Kh8 {[%emt 0:00:20]} 25. Qb3 {[%emt 0:02:11]} Nc3 {[%emt 0:02:36]} 26. Rd2 {[%emt 0:00:11]} a5 {[%emt 0:01:04]} 27. Bd4 {[%emt 0:00:57]} Ne4 {[%emt 0:03:53]} 28. Re2 {[%emt 0:01:10]} Ndc5 {[%emt 0:04:53]} 29. Bxc5 {[%emt 0:05:16]} Nxc5 {[%emt 0:00:07]} 30. Qh3 {[%emt 0:00:03]} Qg6 {[%emt 0:03:47]} 31. Ne7 {[%emt 0:01:22]} Qg7 {[%emt 0:02:03]} 32. Nf5 {[%emt 0:00:51]} g4 {[%emt 0:00:37]} 33. Qe3 {[%emt 0:03:38]} Qg5 {[%emt 0:00:10]} 34. Qxc5 {[%emt 0:00:06]} Qxf5 {[%emt 0:00:12]} 35. Rd2 {[%emt 0:00:17]} Rfc8 {[%emt 0:03:54]} 36. Qxd5 {[%emt 0:00:12]} Qxd5 {[%emt 0:00:47]} 37. Rxd5 {[%emt 0:00:01]} Kg7 {[%emt 0:00:17]} 38. h3 {[%emt 0:01:34]} gxh3 {[%emt 0:00:37]} 39. gxh3 Rc2 {[%emt 0:00:38]} 40. Rb5 {[%emt 0:01:32]} Rb2 {[%emt 0:00:53]} 41. Kg2 {[%emt 0:01:14]} a4 {[%emt 0:00:36]} 42. Rc1 {[%emt 0:01:34]} b3 {[%emt 0:01:43]} 43. axb3 a3 {[%emt 0:00:42]} 44. Rd5 {[%emt 0:02:02]} a2 {[%emt 0:00:23]} 45. Rdd1 {[%emt 0:00:01]} Rxb3 {[%emt 0:00:30]} 46. Ra1 {[%emt 0:00:13]} Rb2 {[%emt 0:00:14]} 47. Kf3 {[%emt 0:01:04]} Ra3+ {[%emt 0:00:23]} 48. Kg2 {[%emt 0:00:19]} Ra5 {[%emt 0:00:33]} 49. h4 {[%emt 0:01:21]} Kg6 {[%emt 0:00:10]} 50. Kg3 {[%emt 0:00:11]} Rab5 {[%emt 0:01:39]} 51. Rd7 {[%emt 0:00:31]} Ra5 {[%emt 0:00:12]} 52. Rdd1 {[%emt 0:00:38]} Ra3+ {[%emt 0:00:28]} 53. f3 {[%emt 0:00:08]} Ra4 {[%emt 0:00:20]} 54. Rdc1 {[%emt 0:00:46]} Ra5 {[%emt 0:00:34]} 55. Rd1 {[%emt 0:00:13]} Kf5 {[%emt 0:00:07]} 56. Re1 {[%emt 0:00:53]} Ra8 {[%emt 0:00:58]} 57. Rac1 {[%emt 0:01:54]} Rab8 {[%emt 0:00:50]} 58. Rc5+ {[%emt 0:00:19]} Kg6 {[%emt 0:00:00]} 59. Ra1 {[%emt 0:00:41]} Ra8 {[%emt 0:00:18]} 60. Rcc1 {[%emt 0:00:22]} Kf7 {[%emt 0:01:07]} 61. Re1 {[%emt 0:00:37]} Rg8+ {[%emt 0:00:32]} 62. Kf4 {[%emt 0:00:14]} Rb4+ {[%emt 0:00:19]} 63. Re4 {[%emt 0:00:28]} Rxe4+ {[%emt 0:00:12]} 64. Kxe4 {[%emt 0:00:49]} Ra8 {[%emt 0:00:06]} 65. Kf5 {[%emt 0:00:20]} Ra5+ {[%emt 0:00:36]} 66. Kf4 {[%emt 0:00:33]} Kg6 {[%emt 0:00:43]} 67. Kg3 {[%emt 0:00:41]} Kf5 {[%emt 0:00:07]} 68. Kg2 {[%emt 0:00:09]} Kf4 {[%emt 0:00:05]} 69. Kf2 {[%emt 0:00:01]} Ra8 {[%emt 0:00:07]} 70. Kg2 {[%emt 0:00:10]} Ra3 {[%emt 0:00:03]} 0-1

[Event "XII Paracin Festival 2019"]
[Site "Paracin"]
[Date "2019.07.08"]
[Round "4.26"]
[White "Nandhidhaa, P V"]
[Black "Arsovic, Zoran"]
[Result "1-0"]
[ECO "B56"]
[WhiteElo "2259"]
[BlackElo "2398"]
[Annotator "NA"]
[PlyCount "83"]
[EventDate "2019.07.05"]
[EventType "swiss"]
[EventCountry "SRB"]
[SourceTitle "playchess.com"]
[Source "ChessBase"]
[SourceQuality "1"]
[TimeControl "5400+30"]

1. e4 {[%emt 0:04:02]} c5 {[%emt 0:00:03]} 2. Nf3 {[%emt 0:00:04]} d6 {[%emt 0:00:20]} 3. d4 {[%emt 0:00:05]} cxd4 {[%emt 0:00:16]} 4. Nxd4 {[%emt 0:00:17]} Nf6 {[%emt 0:00:30]} 5. Nc3 {[%emt 0:00:06]} Nc6 {[%emt 0:00:24]} 6. f3 {[%emt 0:00:42]} e5 {[%emt 0:01:37]} 7. Nb3 {[%emt 0:00:07]} Be7 {[%emt 0:00:43]} 8. Be3 {[%emt 0:00:06]} Be6 {[%emt 0:00:36]} 9. Nd5 {[%emt 0:04:27]} Bxd5 {[%emt 0:01:11]} 10. exd5 {[%emt 0:00:00]} Nb4 {[%emt 0:00:14]} 11. c4 {[%emt 0:06:57]} a5 {[%emt 0:01:09]} 12. Qd2 {[%emt 0:08:52]} b6 {[%emt 0:01:08]} 13. Be2 {[%emt 0:00:48]} O-O {[%emt 0:01:14]} 14. O-O {[%emt 0:00:07]} Nh5 {[%emt 0:03:13]} 15. Nc1 {[%emt 0:01:23]} Na6 {[%emt 0:01:06]} 16. Nd3 {[%emt 0:03:17]} Nc5 {[%emt 0:09:51]} 17. b3 {[%emt 0:05:29]} f5 {[%emt 0:11:55]} 18. f4 {[%emt 0:07:06]} Nxf4 {[%emt 0:16:25]} 19. Nxf4 {[%emt 0:03:12]} exf4 {[%emt 0:05:08]} 20. Bxf4 {[%emt 0:00:33]} Bf6 {[%emt 0:00:38]} 21. Rad1 {[%emt 0:11:22]} Ne4 {[%emt 0:11:26]} 22. Qc2 {[%emt 0:01:11]} Qc7 {[%emt 0:00:12]} 23. Bd3 {[%emt 0:04:43]} Rae8 {[%emt 0:00:12]} 24. Kh1 {[%emt 0:06:15]} Qc5 {[%emt 0:01:36]} 25. g4 {[%emt 0:05:46]} Bd4 {[%emt 0:06:00]} 26. Kg2 {[%emt 0:02:37]} Nc3 {[%emt 0:14:29]} 27. Rde1 {[%emt 0:04:43]} Rxe1 {[%emt 0:02:33]} 28. Rxe1 {[%emt 0:00:11]} b5 {[%emt 0:03:07]} 29. gxf5 {[%emt 0:06:16]} bxc4 {[%emt 0:01:16]} 30. bxc4 {[%emt 0:00:10]} Rb8 {[%emt 0:00:32]} 31. Kh1 {[%emt 0:01:05]} Qa3 {[%emt 0:01:01]} 32. f6 {[%emt 0:00:44]} Bxf6 {[%emt 0:01:11]} 33. Bxh7+ {[%emt 0:00:16]} Kh8 {[%emt 0:00:26]} 34. Bg6 {[%emt 0:04:54]} Nxd5 {[%emt 0:01:29]} 35. Qe2 {[%emt 0:01:51]} Ne7 {[%emt 0:01:21]} 36. Qh5+ {[%emt 0:01:44]} Kg8 {[%emt 0:00:04]} 37. Rxe7 {[%emt 0:00:32]} Rb1+ {[%emt 0:01:50]} 38. Bxb1 {[%emt 0:00:11]} Bxe7 {[%emt 0:00:01]} 39. Qe8+ {[%emt 0:00:42]} Bf8 {[%emt 0:00:04]} 40. Qe6+ {[%emt 0:00:45]} Kh8 {[%emt 0:00:04]} 41. Qf5 {[%emt 0:01:11]} Kg8 {[%emt 0:00:05]} 42. Be4 {[%emt 0:00:46]} 1-0

[Event "XII Paracin Festival 2019"]
[Site "Paracin"]
[Date "2019.07.08"]
[Round "4.27"]
[White "Manish Anto Cristiano F"]
[Black "Martic, Ivan"]
[Result "0-1"]
[ECO "B81"]
[WhiteElo "2208"]
[BlackElo "2392"]
[Annotator "NA"]
[PlyCount "82"]
[EventDate "2019.07.05"]
[EventType "swiss"]
[EventCountry "SRB"]
[SourceTitle "playchess.com"]
[Source "ChessBase"]
[SourceQuality "1"]
[TimeControl "5400+30"]

1. e4 c5 2. Nf3 e6 3. d4 cxd4 4. Nxd4 Nf6 5. Nc3 d6 6. g4 e5 7. Bb5+ Bd7 8. Nf5 Bxb5 9. Nxb5 Qa5+ 10. Nc3 Nxe4 11. Bd2 Nxc3 12. Bxc3 Qc5 13. Qf3 Qc6 14. Ke2 Qxf3+ 15. Kxf3 Nc6 16. Rhd1 O-O-O 17. Rd5 f6 18. Rad1 Kc7 19. R5d3 h5 20. h3 hxg4+ 21. hxg4 Rh3+ 22. Ng3 Rd7 23. a4 g6 24. Kg2 Rh4 25. f3 Rdh7 26. Rh1 Rxh1 27. Nxh1 Kd7 28. Be1 Ke6 29. c4 f5 30. gxf5+ gxf5 31. Nf2 Be7 32. Bc3 Bh4 33. b4 Bxf2 34. Kxf2 Rh2+ 35. Ke1 f4 36. b5 Ne7 37. Bb4 Nf5 38. c5 dxc5 39. Bxc5 b6 40. Bf2 Rh1+ 41. Kd2 Ra1 0-1

[Event "XII Paracin Festival 2019"]
[Site "Paracin"]
[Date "2019.07.08"]
[Round "4.28"]
[White "Dimitrijevic, Nenad"]
[Black "Lee, Jun Hyeok"]
[Result "0-1"]
[ECO "C55"]
[WhiteElo "2150"]
[BlackElo "2383"]
[Annotator "NA"]
[PlyCount "56"]
[EventDate "2019.07.05"]
[EventType "swiss"]
[EventCountry "SRB"]
[SourceTitle "playchess.com"]
[Source "ChessBase"]
[SourceQuality "1"]
[TimeControl "5400+30"]

1. e4 {[%emt 0:00:00]} e5 {[%emt 0:00:00]} 2. Nf3 {[%emt 0:00:00]} Nc6 {[%emt 0:00:00]} 3. Bc4 {[%emt 0:00:31]} Nf6 {[%emt 0:00:02]} 4. d3 {[%emt 0:00:04]} h6 {[%emt 0:00:21]} 5. a3 {[%emt 0:01:21]} d6 {[%emt 0:00:07]} 6. Nc3 {[%emt 0:00:11]} g6 {[%emt 0:02:12]} 7. Nd5 {[%emt 0:02:34]} Bg7 {[%emt 0:01:27]} 8. Nxf6+ {[%emt 0:09:31]} Qxf6 {[%emt 0:00:09]} 9. h3 {[%emt 0:00:10]} Qe7 {[%emt 0:07:03]} 10. Bd2 {[%emt 0:13:29]} O-O {[%emt 0:01:33]} 11. Qe2 {[%emt 0:01:31]} Kh7 {[%emt 0:10:16]} 12. g4 {[%emt 0:04:20]} a5 {[%emt 0:03:36]} 13. O-O-O {[%emt 0:05:41]} Nd8 {[%emt 0:01:58]} 14. Rdg1 {[%emt 0:04:12]} c6 {[%emt 0:00:37]} 15. h4 {[%emt 0:02:05]} b5 {[%emt 0:00:39]} 16. Ba2 {[%emt 0:00:02]} Be6 {[%emt 0:00:14]} 17. Bxe6 {[%emt 0:04:33]} Nxe6 {[%emt 0:00:19]} 18. h5 {[%emt 0:00:33]} g5 {[%emt 0:00:16]} 19. Be3 {[%emt 0:00:52]} a4 {[%emt 0:05:39]} 20. Qd2 {[%emt 0:13:05]} Rfb8 {[%emt 0:04:12]} 21. d4 {[%emt 0:01:54]} b4 {[%emt 0:04:01]} 22. axb4 {[%emt 0:06:13]} a3 {[%emt 0:00:04]} 23. Kb1 {[%emt 0:04:48]} exd4 {[%emt 0:03:57]} 24. Nxd4 {[%emt 0:00:25]} axb2 {[%emt 0:00:53]} 25. c3 {[%emt 0:00:20]} Nxd4 {[%emt 0:00:35]} 26. Bxd4 {[%emt 0:00:12]} Qxe4+ {[%emt 0:00:23]} 27. Kxb2 {[%emt 0:00:05]} Rxb4+ {[%emt 0:00:40]} 28. cxb4 {[%emt 0:00:24]} Bxd4+ {[%emt 0:00:04]} 0-1

[Event "XII Paracin Festival 2019"]
[Site "Paracin"]
[Date "2019.07.08"]
[Round "4.29"]
[White "Risteski, Emil"]
[Black "Nie, Xinyang"]
[Result "1-0"]
[ECO "C00"]
[WhiteElo "2150"]
[BlackElo "2375"]
[Annotator "NA"]
[PlyCount "77"]
[EventDate "2019.07.05"]
[EventType "swiss"]
[EventCountry "SRB"]
[SourceTitle "playchess.com"]
[Source "ChessBase"]
[SourceQuality "1"]
[TimeControl "5400+30"]

1. e4 {[%emt 0:01:55]} a6 {[%emt 0:00:00]} 2. d4 {[%emt 0:00:08]} e6 {[%emt 0:00:00]} 3. Nf3 {[%emt 0:00:10]} d5 {[%emt 0:00:00]} 4. Nbd2 {[%emt 0:00:08]} Nf6 {[%emt 0:00:00]} 5. Bd3 {[%emt 0:01:19]} c5 {[%emt 0:00:00]} 6. exd5 {[%emt 0:00:34]} exd5 {[%emt 0:00:00]} 7. dxc5 {[%emt 0:00:11]} Bxc5 {[%emt 0:00:04]} 8. Nb3 {[%emt 0:00:15]} Be7 {[%emt 0:00:56]} 9. h3 {[%emt 0:01:55]} O-O {[%emt 0:00:27]} 10. O-O {[%emt 0:00:05]} Nc6 {[%emt 0:03:31]} 11. c3 {[%emt 0:01:43]} Be6 {[%emt 0:00:12]} 12. Nbd4 {[%emt 0:02:10]} Re8 {[%emt 0:02:25]} 13. Bf4 {[%emt 0:09:22]} g6 {[%emt 0:06:20]} 14. Re1 {[%emt 0:05:23]} Bf8 {[%emt 0:00:20]} 15. Qd2 {[%emt 0:01:57]} Nh5 {[%emt 0:07:41]} 16. Bh2 {[%emt 0:06:17]} Qc8 {[%emt 0:01:59]} 17. Re2 {[%emt 0:01:10]} Bd7 {[%emt 0:12:43]} 18. Rae1 {[%emt 0:02:26]} Rd8 {[%emt 0:01:34]} 19. g4 {[%emt 0:09:02]} Nf6 {[%emt 0:06:17]} 20. Bf4 {[%emt 0:02:29]} h5 {[%emt 0:06:14]} 21. Bh6 {[%emt 0:13:17]} hxg4 {[%emt 0:01:52]} 22. Nh4 {[%emt 0:00:45]} Nh7 {[%emt 0:05:07]} 23. Nxg6 {[%emt 0:08:01]} Nxd4 {[%emt 0:07:06]} 24. cxd4 {[%emt 0:01:05]} fxg6 {[%emt 0:10:56]} 25. Bxg6 {[%emt 0:00:19]} Qc6 {[%emt 0:00:52]} 26. Bxh7+ {[%emt 0:03:31]} Kh8 {[%emt 0:00:05]} 27. Bxf8 {[%emt 0:03:35]} Rxf8 {[%emt 0:00:01]} 28. Re5 {[%emt 0:06:38]} Rf7 {[%emt 0:08:27]} 29. Rh5 {[%emt 0:05:24]} Rxh7 {[%emt 0:00:38]} 30. Rxh7+ {[%emt 0:00:03]} Kxh7 {[%emt 0:00:04]} 31. Re7+ {[%emt 0:00:18]} Kg6 {[%emt 0:00:09]} 32. h4 {[%emt 0:00:52]} Qf6 {[%emt 0:00:49]} 33. h5+ {[%emt 0:01:06]} Kf5 {[%emt 0:01:17]} 34. Re5+ {[%emt 0:02:22]} Qxe5 {[%emt 0:00:01]} 35. dxe5 {[%emt 0:00:01]} Kxe5 {[%emt 0:00:05]} 36. Qg5+ {[%emt 0:00:15]} Bf5 {[%emt 0:00:07]} 37. h6 {[%emt 0:00:19]} Ke6 {[%emt 0:01:09]} 38. h7 {[%emt 0:00:44]} Rh8 {[%emt 0:01:11]} 39. Qg8+ {[%emt 0:00:08]} 1-0

[Event "XII Paracin Festival 2019"]
[Site "Paracin"]
[Date "2019.07.08"]
[Round "4.30"]
[White "Mammadov, Mustafa"]
[Black "Abramovic, Bosko"]
[Result "0-1"]
[ECO "D37"]
[WhiteElo "2005"]
[BlackElo "2373"]
[Annotator "NA"]
[PlyCount "96"]
[EventDate "2019.07.05"]
[EventType "swiss"]
[EventCountry "SRB"]
[SourceTitle "playchess.com"]
[Source "ChessBase"]
[SourceQuality "1"]
[TimeControl "5400+30"]

1. d4 {[%emt 0:00:00]} Nf6 {[%emt 0:00:00]} 2. c4 {[%emt 0:00:00]} e6 {[%emt 0:00:04]} 3. Nc3 {[%emt 0:02:21]} d5 {[%emt 0:01:25]} 4. Nf3 {[%emt 0:00:09]} Nbd7 {[%emt 0:00:13]} 5. Bf4 {[%emt 0:05:28]} dxc4 {[%emt 0:00:44]} 6. e3 {[%emt 0:07:41]} Nb6 {[%emt 0:00:11]} 7. Ne5 {[%emt 0:11:22]} Nfd5 {[%emt 0:04:24]} 8. Nxc4 {[%emt 0:05:19]} Nxf4 {[%emt 0:05:33]} 9. exf4 {[%emt 0:00:09]} Nxc4 {[%emt 0:00:22]} 10. Bxc4 {[%emt 0:00:07]} Bd6 {[%emt 0:00:52]} 11. Qd2 {[%emt 0:07:08]} Bd7 {[%emt 0:00:47]} 12. O-O {[%emt 0:08:18]} O-O {[%emt 0:00:06]} 13. d5 {[%emt 0:15:17]} e5 {[%emt 0:05:53]} 14. Ne4 {[%emt 0:09:03]} exf4 {[%emt 0:04:25]} 15. Nxd6 {[%emt 0:00:07]} cxd6 {[%emt 0:00:06]} 16. Qxf4 {[%emt 0:00:05]} Qb6 {[%emt 0:00:44]} 17. b4 {[%emt 0:10:53]} Rfe8 {[%emt 0:04:24]} 18. Bd3 {[%emt 0:02:36]} Re5 {[%emt 0:01:01]} 19. Rfe1 {[%emt 0:00:47]} Rae8 {[%emt 0:00:43]} 20. Rxe5 {[%emt 0:00:31]} dxe5 {[%emt 0:02:10]} 21. Qh4 {[%emt 0:05:58]} g6 {[%emt 0:00:59]} 22. Rc1 {[%emt 0:00:34]} e4 {[%emt 0:02:54]} 23. Bf1 {[%emt 0:02:42]} e3 {[%emt 0:04:14]} 24. Rc2 {[%emt 0:00:13]} Bf5 {[%emt 0:01:41]} 25. Rb2 {[%emt 0:02:26]} Be4 {[%emt 0:05:59]} 26. Qg5 Qd4 27. Re2 exf2+ 28. Rxf2 Bxd5 29. Qd2 Re4 30. a3 Be6 31. Qxd4 Rxd4 32. Rf3 Rd2 33. h3 Ra2 34. Rc3 b6 35. Re3 Kg7 36. Be2 Rb2 37. Kf2 Bc4 38. Kf3 Bxe2+ 39. Rxe2 Rxe2 40. Kxe2 f5 41. Ke3 g5 42. Kd4 Kf6 43. Kd5 h5 44. b5 h4 45. Kd6 f4 46. Kd5 Kf5 47. Kd4 g4 48. Kd3 f3 0-1